bitfinex/quotes_ETHUSD_20250404
["timestamp","ask_amount","ask_price","bid_price","bid_amount"]
[1743783292873,3.0,1799.6,1799.3,5.55767]
[1743783293073,3.0,1799.6,1799.4,5.55731]
[1743783293273,3.0,1799.6,1799.3,5.55758]
[1743783293473,3.0,1799.6,1799.2,6.10783]
[1743783293674,3.0,1799.6,1799.4,11.11465]
[1743783294010,3.0,1799.6,1799.3,5.55762]
[1743783294309,3.0,1799.6,1799.3,5.55766]
[1743783294461,8.55692,1799.6,1799.2,5.55774]
[1743783294888,0.84234421,1799.7,1799.5,5.55709]
[1743783295218,6.664,1800.2,1799.7,5.55645]
[1743783295515,5.55602,1799.9,1799.5,6.869409]
[1743783295666,3.0,1800.0,1799.8,5.55601]
[1743783295868,0.05574421,1800.1,1799.8,5.55599]
[1743783296069,12.27478421,1800.2,1799.9,5.55585]
[1743783296269,3.0,1800.1,1799.8,5.55599]
[1743783296469,3.05574421,1800.1,1799.8,5.55599]
[1743783296682,8.61107421,1800.1,1799.7,5.55634]
[1743783296863,8.61107421,1800.1,1799.8,5.55604]
[1743783296864,3.05574421,1800.1,1799.8,5.55604]
[1743783297082,0.7889,1800.3,1800.0,5.55527]
[1743783297263,0.84464421,1800.3,1800.0,11.11068]
[1743783297594,6.31926,1800.6,1800.2,5.55493]
[1743783297799,5.55463,1800.3,1800.0,5.55545]
[1743783297964,0.05574421,1800.3,1800.0,5.55545]
[1743783298159,5.61042421,1800.3,1799.9,5.55583]
[1743783298365,5.55557,1800.0,1799.6,5.55669]
[1743783298560,0.05574421,1800.0,1799.4,5.55735]
[1743783298782,5.55638,1799.8,1799.4,11.1146]
[1743783298970,5.55638,1799.8,1799.5,5.55709]
[1743783299171,5.55652,1799.7,1799.2,6.37446]
[1743783299370,5.55652,1799.7,1799.3,5.55769]
[1743783299371,0.05574421,1799.6,1799.3,5.55769]
[1743783299794,3.0,1800.0,1799.4,5.55718]
[1743783300100,7.4288,1800.1,1799.9,5.55583]
[1743783300395,0.8002,1800.5,1800.2,5.55464]
[1743783300560,6.35435,1800.5,1800.1,5.55514]
[1743783300766,0.8002,1800.5,1800.2,0.05554355]
[1743783300972,0.8002,1800.5,1800.3,5.5546]
[1743783301296,0.8202,1800.7,1800.5,5.554]
[1743783301495,0.04513877,1800.9,1800.7,5.55328]
[1743783301696,0.04513877,1800.9,1800.8,5.60860813]
[1743783301896,0.04513877,1800.9,1800.7,5.55328]
[1743783302061,0.04513877,1800.9,1800.6,11.1072]
[1743783302268,0.04513877,1800.9,1800.6,5.5537]
[1743783302472,0.04513877,1800.9,1800.6,5.55352]
[1743783302679,5.59800877,1800.9,1800.5,5.55382]
[1743783302882,0.04513877,1800.9,1800.7,5.55322]
[1743783303195,0.04513877,1800.9,1800.6,5.5536]
[1743783303365,5.5532,1800.8,1800.4,6.37178]
[1743783303564,0.05574421,1800.8,1800.3,5.55459]
[1743783303894,5.55392,1800.6,1800.2,5.55486]
[1743783304195,5.55405,1800.5,1800.2,5.55473]
[1743783304397,5.55405,1800.5,1800.1,5.55523]
[1743783304565,5.60947421,1800.6,1800.1,5.55504]
[1743783304899,5.55417,1800.5,1800.1,5.55504]
[1743783305096,0.05574421,1800.4,1800.0,5.55555]
[1743783305307,12.15571,1800.6,1800.2,11.10947]
[1743783305517,12.15571,1800.6,1800.1,0.05554182]
[1743783305518,5.60977421,1800.5,1800.1,5.55522]
[1743783305711,5.55445,1800.4,1800.0,5.55536]
[1743783305911,5.55445,1800.4,1799.9,6.30892]
[1743783305912,0.823,1800.2,1799.6,5.5567]
[1743783306113,6.65574421,1800.1,1799.4,1.436418]
[1743783306285,6.6,1800.1,1799.9,5.55574]
[1743783306486,6.602,1800.4,1799.9,6.31368]
[1743783306713,0.87524421,1800.8,1800.2,5.5549]
[1743783306914,0.04513877,1800.9,1800.7,5.55339]
[1743783307119,0.04513877,1800.9,1800.8,5.55308]
[1743783307435,0.04513877,1800.9,1800.2,5.55493]
[1743783307436,5.5535,1800.7,1800.2,0.7983]
[1743783307735,0.05574421,1800.6,1800.4,5.55409]
[1743783307914,7.3872,1800.7,1800.4,5.55409]
[1743783308098,12.99634421,1800.7,1800.3,5.5546]
[1743783308284,5.55452,1800.4,1800.0,6.35375]
[1743783308484,5.55452,1800.4,1800.0,6.35372]
[1743783308724,5.60975421,1800.5,1800.0,6.35372]
[1743783308964,6.47088963,1800.5,1800.0,11.11085]
[1743783309086,0.05574421,1800.5,1800.2,5.55466]
[1743783309509,0.7963,1800.2,1799.9,5.55575]
[1743783309705,0.05574421,1800.1,1799.4,0.7679]
[1743783310010,0.05574421,1800.1,1799.8,5.55613]
[1743783310226,5.61116421,1800.1,1799.7,5.55644]
[1743783310382,0.05574421,1800.1,1799.8,5.55606]
[1743783310587,0.05574421,1800.1,1799.5,5.55708]
[1743783310840,5.55599,1799.9,1799.4,6.32526]
[1743783311037,5.55628,1799.8,1799.4,5.55724]
[1743783311238,0.83294421,1799.8,1799.7,5.55648]
[1743783311415,0.7772,1800.1,1799.9,5.55579]
[1743783311717,6.617,1800.2,1800.0,5.55553]
[1743783312089,0.05574421,1800.3,1800.0,5.55553]
[1743783312287,5.61046421,1800.3,1799.9,5.55568]
[1743783312487,7.3962,1800.4,1800.0,5.55532]
[1743783312687,5.55473,1800.3,1799.9,5.55581]
[1743783312893,5.61078421,1800.2,1799.8,5.55613]
[1743783313094,0.05574421,1800.2,1799.9,5.55576]
[1743783313520,0.05574421,1800.2,1799.9,5.55569]
[1743783313723,5.61078421,1800.2,1799.8,5.55613]
[1743783313890,5.61078421,1800.2,1799.4,6.112824]
[1743783313891,5.55628,1799.8,1799.4,5.55736]
[1743783314105,5.61241421,1799.7,1799.3,5.40142598]
[1743783314305,5.61241421,1799.7,1799.1,5.55816]
[1743783314306,5.55723,1799.5,1799.1,5.55816]
[1743783314508,0.81814421,1799.7,1798.8,5.55896]
[1743783314509,5.558,1799.3,1798.9,5.55894]
[1743783314731,6.604,1799.3,1799.0,5.5585]
[1743783314934,0.05574421,1799.2,1798.8,6.32286]
[1743783315122,12.16193,1799.3,1798.9,5.55877]
[1743783315433,6.604,1799.3,1798.8,0.05558109]
[1743783315610,6.604,1799.3,1799.1,11.11639]
[1743783315812,6.604,1799.3,1799.0,5.55853]
[1743783316017,6.604,1799.3,1799.1,5.55824]
[1743783316217,6.604,1799.3,1799.0,5.55859]
[1743783316418,6.604,1799.3,1799.0,5.55845]
[1743783316828,12.16191,1799.3,1798.9,5.55892]
[1743783317134,5.55843,1799.1,1798.7,5.55947]
[1743783317335,0.84174421,1799.2,1798.7,0.55]
[1743783317635,6.604,1799.3,1799.1,5.55806]
[1743783317836,0.05574421,1799.4,1798.9,5.55895]
[1743783318161,0.05574421,1799.4,1799.1,5.5583]
[1743783318365,5.55761,1799.4,1799.0,5.55861]
[1743783318635,5.55761,1799.4,1799.0,11.11714]
[1743783318840,0.05574421,1799.3,1798.9,5.55881]
[1743783319039,0.05574421,1799.3,1799.0,5.55851]
[1743783319241,0.05574421,1799.3,1798.7,5.55955]
[1743783319447,3.84174421,1799.5,1799.1,5.55829]
[1743783319615,9.39893421,1799.5,1799.2,5.55791]
[1743783319939,5.55819,1799.2,1798.8,5.55914]
[1743783320338,0.05574421,1799.1,1798.8,5.55906]
[1743783320512,6.60674421,1799.2,1798.9,5.55885]
[1743783320715,6.551,1799.2,1799.0,5.55841]
[1743783320924,9.549,1799.4,1799.1,5.55833]
[1743783321121,9.549,1799.4,1799.2,5.55785]
[1743783321122,6.549,1799.4,1799.2,5.55785]
[1743783321343,6.549,1799.4,1799.1,5.55815]
[1743783321516,12.10643,1799.4,1799.1,5.55815]
[1743783321719,6.549,1799.4,1799.1,5.55815]
[1743783322044,12.1065,1799.4,1799.1,5.55831]
[1743783322241,6.549,1799.4,1798.9,0.7943]
[1743783322440,6.549,1799.4,1799.2,5.55787]
[1743783322642,6.549,1799.4,1799.2,11.11584]
[1743783322843,6.549,1799.4,1799.3,5.55771]
[1743783323044,6.549,1799.4,1799.2,5.5579]
[1743783323249,6.549,1799.4,1799.1,5.5583]
[1743783323450,6.549,1799.4,1799.1,11.11645]
[1743783324221,5.55803,1799.2,1798.9,5.55895]
[1743783324441,5.55845,1799.1,1798.7,5.55941]
[1743783324851,0.8331,1798.8,1798.3,5.56067]
[1743783325038,6.39404,1798.3,1798.1,0.05]
[1743783325249,0.8331,1798.3,1798.1,0.05]
[1743783325439,5.56111,1798.2,1798.1,0.05]
[1743783325639,16.27429763,1798.2,1798.1,0.05]
[1743783325842,12.11111,1798.2,1798.1,0.05]
[1743783326047,6.55,1798.2,1798.1,0.05]
[1743783326339,12.16685421,1798.2,1798.1,0.05]
[1743783326542,6.55,1798.2,1798.1,0.05]
[1743783327422,6.55,1798.2,1798.1,5.61142]
[1743783328021,6.55,1798.2,1798.1,0.05]
[1743783328691,12.11111,1798.2,1798.1,0.05]
[1743783328826,13.52721,1798.2,1798.1,0.05]
[1743783329033,16.52721,1798.2,1798.1,0.05]
[1743783329933,7.3111,1798.2,1798.1,0.05]
[1743783330137,3.05574421,1798.4,1798.1,5.61128]
[1743783330332,6.552,1798.5,1798.2,5.56097]
[1743783330562,6.552,1798.5,1798.1,0.05]
[1743783330563,6.552,1798.5,1798.4,5.56049]
[1743783330763,0.05574421,1798.8,1798.6,5.55985]
[1743783330965,6.552,1799.0,1798.8,5.55926]
[1743783331179,6.552,1799.0,1798.9,5.55895]
[1743783331481,6.552,1799.0,1798.7,11.11897]
[1743783331705,6.552,1799.0,1798.9,5.55895]
[1743783332000,5.55836,1799.1,1798.7,5.55956]
[1743783332200,0.05574421,1799.1,1798.6,1.00018052]
[1743783332408,0.05574421,1799.1,1798.9,11.1177]
[1743783332708,6.552,1799.2,1799.0,5.55846]
[1743783333213,12.11003,1799.2,1798.9,5.55887]
[1743783333511,5.61408421,1799.1,1798.8,5.5591]
[1743783334208,5.61413421,1799.1,1798.8,5.5591]
[1743783334512,0.1856,1799.0,1798.9,5.55895]
[1743783334676,0.1856,1799.0,1798.8,11.11832]
[1743783334878,3.05574421,1799.1,1798.8,11.11832]
[1743783334879,3.05574421,1799.1,1798.8,5.55922]
[1743783335207,3.0,1799.1,1798.9,5.55894]
[1743783335418,3.0,1799.1,1798.9,5.55882]
[1743783335569,0.05574421,1799.2,1798.9,11.673532]
[1743783335900,6.7376,1799.3,1798.9,0.555882]
[1743783336192,6.552,1799.5,1799.4,5.55738]
[1743783336370,6.60774421,1799.7,1798.9,1.3635]
[1743783336574,6.60774421,1799.7,1799.4,11.1145]
[1743783336773,3.0,1799.6,1799.4,11.1145]
[1743783336970,6.60774421,1799.7,1799.5,5.55709]
[1743783337177,6.552,1799.7,1799.5,5.55692]
[1743783337394,6.552,1799.7,1799.4,5.55736]
[1743783337819,6.552,1799.7,1799.5,5.55685]
[1743783337971,6.552,1799.7,1799.2,5.55791]
[1743783338174,0.05574421,1799.6,1799.3,5.55746]
[1743783338487,5.61269421,1799.6,1799.2,5.55789]
[1743783338685,5.55715,1799.5,1799.2,5.55789]
[1743783338877,5.55715,1799.5,1799.1,5.5582]
[1743783339099,0.24134421,1799.4,1798.9,6.3724]
[1743783339278,5.55782,1799.3,1798.9,5.5589]
[1743783339474,5.55885,1799.0,1798.6,5.55983]
[1743783339691,0.24134421,1798.9,1798.6,5.5597]
[1743783339870,5.80032421,1798.9,1798.5,5.56018]
[1743783340070,5.80032421,1798.9,1798.5,5.56]
[1743783340371,5.81968357,1798.8,1798.4,5.56039]
[1743783340570,6.60674421,1798.7,1798.4,5.56026]
[1743783340898,0.26012333,1798.6,1798.4,5.56026]
[1743783341098,0.26012333,1798.6,1798.1,0.05]
[1743783341099,5.56035,1798.5,1798.1,5.61128]
[1743783341261,5.74623,1798.4,1798.1,5.61128]
[1743783341467,0.05574421,1798.3,1798.1,5.61128]
[1743783341999,0.26024297,1798.2,1798.1,0.05]
[1743783342398,5.82135297,1798.2,1798.1,0.05]
[1743783342702,16.51715369,1798.2,1798.1,0.05]
[1743783342865,16.70275369,1798.2,1798.1,0.05]
[1743783344000,17.11433829,1798.2,1798.1,0.05]
[1743783344907,0.1856,1798.0,1796.8,0.90930573]
[1743783345108,5.56536,1796.9,1796.5,5.56626]
[1743783345269,6.86529819,1796.8,1796.6,5.56604]
[1743783345598,12.43076819,1796.8,1796.3,0.7849]
[1743783345798,12.37502398,1796.8,1796.4,5.56658]
[1743783346000,6.80955398,1796.8,1796.6,5.56596]
[1743783346167,6.80955398,1796.8,1796.5,5.5662]
[1743783346368,6.80955398,1796.8,1796.5,0.55662]
[1743783346574,0.25655398,1796.8,1796.7,5.56575]
[1743783347075,5.56432,1797.2,1796.8,5.56533]
[1743783347287,12.1169,1797.3,1796.9,5.56495]
[1743783347475,0.05574421,1797.2,1796.9,5.56495]
[1743783347673,5.61998421,1797.2,1796.6,5.56606]
[1743783347883,5.61998421,1797.2,1796.7,5.56575]
[1743783348087,5.61998421,1797.2,1796.8,5.56532]
[1743783348498,5.56466,1797.1,1796.7,5.56555]
[1743783348697,0.05574421,1797.2,1796.9,5.565]
[1743783349110,0.05574421,1797.2,1796.9,5.56512]
[1743783349272,6.553,1797.3,1797.1,5.56452]
[1743783349466,6.553,1797.3,1797.0,5.56462]
[1743783349691,6.553,1797.3,1797.1,5.5645]
[1743783349868,6.553,1797.3,1797.2,5.56421]
[1743783350068,6.556,1797.4,1797.3,5.56387]
[1743783350304,0.1856,1797.7,1797.4,5.56359]
[1743783350305,6.61174421,1797.7,1797.4,5.56359]
[1743783350703,6.61174421,1797.7,1797.4,11.12704]
[1743783350908,6.61174421,1797.7,1797.3,5.56386]
[1743783350909,3.0,1797.6,1797.3,5.56386]
[1743783351116,3.0,1797.6,1797.4,5.56336]
[1743783351496,3.0,1797.6,1797.1,0.55]
[1743783351817,6.61174421,1798.0,1797.8,5.56235]
[1743783352013,6.556,1798.0,1797.9,5.56204]
[1743783352204,5.56051,1798.4,1797.7,0.55]
[1743783352406,5.56051,1798.4,1797.9,5.56195]
[1743783352407,5.56092,1798.3,1797.9,5.56195]
[1743783352717,0.05574421,1798.2,1797.8,5.56217]
[1743783352885,5.61673421,1798.3,1797.9,5.56196]
[1743783353085,3.05574421,1798.2,1797.9,5.56192]
[1743783353286,0.05574421,1798.2,1798.0,5.56163]
[1743783353603,6.556,1798.4,1798.0,5.56161]
[1743783353917,0.05574421,1798.3,1798.0,5.56165]
[1743783354137,3.05574421,1798.3,1798.0,11.12326]
[1743783354324,5.7455,1798.6,1798.2,5.56095]
[1743783354482,6.555,1798.5,1798.3,5.56067]
[1743783355117,6.555,1798.5,1798.4,5.56049]
[1743783355282,6.79427624,1798.5,1798.4,5.56049]
[1743783355487,6.79427624,1798.5,1798.0,0.8213]
[1743783355488,5.56067,1798.4,1798.0,0.8213]
[1743783355716,0.23883296,1798.3,1798.1,5.56142]
[1743783355917,0.05574421,1798.4,1798.1,11.12265]
[1743783356103,0.23865159,1798.3,1798.1,5.56142]
[1743783356303,6.555,1798.5,1798.3,5.56063]
[1743783356515,6.555,1798.5,1798.1,11.12264]
[1743783356516,0.23885218,1798.4,1798.1,11.12264]
[1743783356683,4.71562861,1798.4,1797.8,5.56232]
[1743783356889,5.56202,1798.0,1797.5,6.34915]
[1743783357117,12.59649459,1797.9,1797.5,5.56313]
[1743783357323,6.97860038,1797.9,1797.6,5.56278]
[1743783357510,6.79300038,1797.9,1797.7,5.56254]
[1743783357711,6.79300038,1797.9,1797.7,5.56249]
[1743783358026,5.61812421,1797.8,1797.4,5.56356]
[1743783358229,5.61843421,1797.7,1797.3,5.56379]
[1743783358411,5.563,1797.6,1797.2,5.56392]
[1743783358591,0.05574421,1797.5,1797.3,5.56367]
[1743783358791,0.23675473,1797.4,1797.3,5.56367]
[1743783359110,6.79020994,1797.4,1797.3,5.56367]
[1743783359297,6.79020994,1797.4,1797.1,5.56441]
[1743783359700,12.40967415,1797.4,1797.0,5.56482]
[1743783359907,0.05574421,1797.3,1797.0,11.12946]
[1743783360091,0.23793883,1797.2,1797.1,5.56421]
[1743783360488,6.60974421,1797.4,1797.1,5.56421]
[1743783360687,6.60974421,1797.4,1797.1,5.56442]
[1743783361003,0.23798838,1797.3,1797.1,5.56439]
[1743783361204,0.23798838,1797.3,1797.2,5.5642]
[1743783361688,5.85764259,1797.3,1796.8,5.5654]
[1743783361928,5.56436,1797.2,1796.8,5.56532]
[1743783362115,5.80189838,1797.3,1797.0,5.56482]
[1743783362311,5.80189838,1797.3,1796.7,0.7862]
[1743783362312,5.56465,1797.1,1796.7,6.35166]
[1743783362513,0.23737042,1797.0,1796.7,6.35166]
[1743783362697,5.85807463,1797.0,1796.6,5.56589]
[1743783362902,0.29311463,1797.0,1796.7,5.56572]
[1743783363109,6.555,1796.9,1796.7,11.13135]
[1743783363309,0.23663518,1796.8,1796.7,5.56563]
[1743783363506,6.555,1796.9,1796.8,5.56544]
[1743783363855,6.79162417,1796.9,1796.8,5.56544]
[1743783364332,0.23662417,1796.9,1796.8,6.678547]
[1743783364550,5.65e-06,1796.9,1796.8,8.09439249]
[1743783364707,6.555,1797.5,1797.4,5.56359]
[1743783364902,6.555,1797.5,1797.3,5.61952177]
[1743783364903,0.198714,1797.5,1797.3,5.61952177]
[1743783365103,6.555,1797.9,1797.7,5.56249]
[1743783365319,6.555,1797.9,1797.2,6.32007]
[1743783365320,0.19901387,1797.8,1797.2,6.32007]
[1743783365521,5.61862421,1797.7,1797.3,5.56373]
[1743783365721,5.76248777,1797.6,1797.3,5.56373]
[1743783366014,0.19950777,1797.6,1797.5,5.56328]
[1743783366315,3.0,1797.8,1797.6,5.56296]
[1743783366522,0.2007165,1797.7,1797.3,5.56388]
[1743783366730,0.2007165,1797.7,1797.5,5.56309]
[1743783367340,0.2007165,1797.7,1797.4,6.11351]
[1743783367544,0.25646071,1797.7,1797.4,5.56351]
[1743783367843,0.25646071,1797.7,1797.3,5.56368]
[1743783368005,6.42375005,1797.7,1797.3,5.56364]
[1743783368212,8.56298,1797.6,1797.2,5.56416]
[1743783368411,5.61914421,1797.5,1797.1,11.12887]
[1743783368612,5.8194235,1797.5,1797.1,11.12879]
[1743783368939,0.20027929,1797.5,1797.4,5.56359]
[1743783369170,0.1856,1797.7,1797.4,5.56359]
[1743783369341,0.20041964,1797.6,1797.2,0.55]
[1743783369531,0.1856,1797.7,1797.4,5.56329]
[1743783369844,0.20041964,1797.6,1797.3,5.56389]
[1743783370345,0.20027929,1797.5,1797.2,0.55]
[1743783370525,0.1856,1797.7,1797.5,5.56313]
[1743783370721,0.20041964,1797.6,1797.4,5.56341]
[1743783370925,11.31135,1797.7,1797.3,5.56386]
[1743783371120,11.31135,1797.7,1797.0,5.56468]
[1743783371121,0.25616385,1797.6,1797.0,5.56468]
[1743783371320,0.25616385,1797.6,1796.9,6.36971]
[1743783371321,5.56407,1797.3,1796.9,6.36971]
[1743783371525,6.81034491,1797.2,1796.9,5.56497]
[1743783371764,6.99594491,1797.2,1796.4,0.7606]
[1743783371960,5.56547,1796.8,1796.4,6.32725]
[1743783372244,11.46296593,1796.7,1796.1,0.05]
[1743783372438,5.56676,1796.4,1796.1,0.05]
[1743783372756,8.7529,1796.2,1796.1,0.05]
[1743783373044,15.50629248,1796.2,1796.1,0.05]
[1743783373226,17.87474132,1796.2,1796.1,0.05]
[1743783373621,5.5701,1795.3,1795.0,0.7606]
[1743783373822,5.62614421,1795.2,1794.8,5.57143]
[1743783374022,0.24991607,1795.2,1795.0,5.5708]
[1743783374345,0.19417186,1795.2,1795.0,5.5708]
[1743783374845,0.19417186,1795.2,1795.1,5.62072]
[1743783375720,0.24991607,1795.2,1795.1,0.05]
[1743783376050,10.24341768,1795.2,1795.1,0.05]
[1743783376417,10.24341768,1795.2,1793.9,8.57437]
[1743783376418,5.57283,1794.5,1794.1,5.62368]
[1743783376751,0.1856,1794.6,1794.1,0.05]
[1743783376752,6.80513841,1794.4,1794.1,0.05]
[1743783377045,8.57351,1794.2,1794.1,0.05]
[1743783377216,3.05574421,1794.2,1794.1,0.05]
[1743783377412,3.24998051,1794.2,1794.1,0.05]
[1743783377620,6.7532363,1794.2,1794.1,0.05]
[1743783377932,15.3267463,1794.2,1794.1,0.05]
[1743783378140,17.41676593,1794.2,1794.1,0.05]
[1743783378535,9.7532363,1794.2,1794.1,0.05]
[1743783378847,0.1942363,1794.2,1794.1,5.62382]
[1743783379450,0.1942363,1794.2,1794.1,6.17382]
[1743783379627,0.1942363,1794.2,1794.1,6.22955328]
[1743783379832,6.559,1794.6,1794.3,5.57308]
[1743783380244,6.559,1794.6,1794.4,5.57276]
[1743783380423,6.559,1794.6,1794.5,5.57258]
[1743783380849,6.559,1794.6,1794.4,5.57276]
[1743783381050,6.559,1794.6,1794.3,5.57313]
[1743783381351,0.05574421,1794.5,1794.2,5.57333]
[1743783381951,7.27064421,1794.6,1794.3,5.57306]
[1743783382145,6.61474421,1794.6,1794.3,5.57303]
[1743783382344,6.61474421,1794.6,1794.4,5.57269]
[1743783382723,12.18714421,1794.6,1794.2,5.57344]
[1743783382925,8.75835,1794.5,1794.1,5.62375]
[1743783383224,0.05574421,1794.4,1794.1,5.62366]
[1743783383636,5.57332,1794.3,1794.1,0.05]
[1743783383824,5.62925421,1794.2,1794.1,0.05]
[1743783384032,8.62925421,1794.2,1794.1,0.05]
[1743783384724,3.05574421,1794.2,1794.1,0.05]
[1743783384926,8.62925421,1794.2,1794.1,0.05]
[1743783385132,10.09094135,1794.2,1794.1,0.05]
[1743783385433,10.261427,1794.2,1794.1,0.05]
[1743783385841,4.687917,1794.2,1794.1,0.05]
[1743783386040,3.22622986,1794.2,1794.1,0.05]
[1743783386438,0.17048565,1794.2,1794.1,0.05]
[1743783386655,6.73248565,1794.2,1794.1,0.05]
[1743783386867,6.78822986,1794.2,1794.1,0.05]
[1743783387031,15.36173986,1794.2,1794.1,0.05]
[1743783387235,17.39949264,1794.2,1794.1,0.05]
[1743783387434,17.58509264,1794.2,1794.1,0.05]
[1743783390271,15.49159565,1794.2,1794.1,0.05]
[1743783390450,9.91808565,1794.2,1794.1,0.05]
[1743783390644,6.73548565,1794.2,1794.1,0.05]
[1743783391374,15.36473986,1794.2,1794.1,0.05]
[1743783391579,15.30899565,1794.2,1794.1,0.05]
[1743783391879,17.39722022,1794.2,1794.1,0.05]
[1743783395783,3.0,1794.1,1793.5,0.7925]
[1743783396081,5.57552,1793.6,1793.2,6.34432]
[1743783396258,6.62074421,1793.5,1793.3,5.57618]
[1743783396459,6.78790884,1793.5,1793.3,5.57618]
[1743783396693,6.73216463,1793.5,1793.4,5.576]
[1743783397052,6.73216463,1793.5,1793.3,5.57616]
[1743783397283,6.73216463,1793.5,1793.4,5.576]
[1743783397654,0.16716463,1793.5,1793.4,5.576]
[1743783398390,5.57414,1794.0,1793.4,5.576]
[1743783398391,6.566,1793.7,1793.6,5.57537]
[1743783398685,6.73257049,1793.7,1793.6,5.63111929]
[1743783398858,6.73257049,1793.7,1793.6,6.33837]
[1743783399981,6.73257049,1793.7,1793.5,5.57546]
[1743783400387,6.73257049,1793.7,1793.6,5.57537]
[1743783401152,9.73257049,1793.7,1793.4,5.57574]
[1743783401682,9.7883147,1793.7,1793.3,6.37509]
[1743783402050,15.3633947,1793.7,1793.3,6.37509]
[1743783402375,9.73257049,1793.7,1793.4,5.57592]
[1743783402559,15.30766049,1793.7,1793.4,5.57592]
[1743783402758,15.30766049,1793.7,1793.3,6.37505]
[1743783402980,15.30766049,1793.7,1793.3,11.95123]
[1743783403185,15.30766049,1793.7,1793.3,6.37505]
[1743783403387,9.73257049,1793.7,1793.4,5.57599]
[1743783403588,9.73257049,1793.7,1793.3,1.4921604]
[1743783403786,5.57662,1793.2,1792.7,0.8194]
[1743783403972,5.57798,1792.8,1792.4,0.8194]
[1743783404286,5.57798,1792.8,1792.3,5.57929]
[1743783404287,0.1636718,1792.7,1792.3,5.57929]
[1743783404587,6.566,1792.6,1792.3,5.57929]
[1743783404786,0.16200786,1792.5,1792.2,0.7525]
[1743783404956,5.57912,1792.4,1792.2,0.7525]
[1743783405292,0.16202978,1792.3,1792.2,6.33223]
[1743783405673,6.566,1792.6,1792.3,5.57932]
[1743783405876,6.62174421,1792.6,1792.1,0.05]
[1743783406075,5.57914,1792.4,1792.1,5.62998]
[1743783406276,5.57914,1792.4,1792.1,0.05]
[1743783406277,5.57953,1792.3,1792.1,0.05]
[1743783406470,5.63547421,1792.2,1792.1,0.05]
[1743783406856,0.05574421,1792.2,1792.1,0.05]
[1743783407261,5.63547421,1792.2,1792.1,0.05]
[1743783407479,0.05574421,1792.2,1792.1,0.05]
[1743783408097,6.567,1792.2,1792.1,5.63004]
[1743783408664,6.567,1792.2,1792.1,0.05]
[1743783409078,6.62274421,1792.2,1792.1,0.05]
[1743783409693,6.567,1792.2,1792.1,0.05]
[1743783409895,6.567,1792.3,1792.1,0.05]
[1743783410101,6.62274421,1792.3,1792.1,0.05]
[1743783410593,12.20233421,1792.3,1792.1,0.05]
[1743783410795,12.14659,1792.3,1792.1,0.05]
[1743783410997,0.05574421,1792.2,1792.1,0.05]
[1743783411184,6.567,1792.3,1792.1,5.6299]
[1743783411389,6.567,1792.3,1792.2,5.57973]
[1743783413590,12.14482,1793.2,1792.5,0.55]
[1743783413786,6.568,1793.2,1792.9,5.57727]
[1743783413982,0.05574421,1793.1,1792.5,0.55]
[1743783414265,6.568,1793.0,1792.9,5.57727]
[1743783414413,6.568,1793.4,1793.3,5.57625]
[1743783414588,6.568,1793.4,1793.2,5.57642]
[1743783414919,6.568,1793.4,1793.3,5.57631]
[1743783415487,6.67910914,1793.4,1793.3,5.57631]
[1743783415923,0.11110914,1793.4,1793.3,6.33321]
[1743783416127,0.11110914,1793.4,1793.3,8.074173]
[1743783416329,6.568,1793.9,1793.7,5.57487]
[1743783416619,6.568,1793.9,1793.7,11.14973]
[1743783416620,0.11182495,1793.8,1793.7,11.14973]
[1743783416825,6.568,1793.9,1793.8,5.57475]
[1743783417117,0.11196585,1793.9,1793.8,5.57475]
[1743783417406,12.14115,1794.0,1793.5,5.57555]
[1743783417582,12.30921006,1793.9,1793.5,5.57555]
[1743783417789,12.25346585,1793.9,1793.5,5.57549]
[1743783417996,0.05574421,1793.8,1793.4,5.57598]
[1743783418179,0.11241372,1793.7,1793.4,5.57591]
[1743783418374,0.11241372,1793.7,1793.4,5.57583]
[1743783418580,0.11241372,1793.7,1793.5,5.57568]
[1743783418973,0.11241372,1793.7,1793.5,5.5755]
[1743783419179,0.11241372,1793.7,1793.6,5.57537]
[1743783419396,0.11241372,1793.7,1793.5,5.5755]
[1743783420188,0.11241372,1793.7,1793.4,5.57595]
[1743783420390,5.68752372,1793.7,1793.4,5.57595]
[1743783420590,5.57627,1793.4,1793.0,6.37061]
[1743783420906,6.67772842,1793.3,1793.0,5.57706]
[1743783421109,6.67772842,1793.3,1792.9,5.57751]
[1743783421310,6.67772842,1793.3,1793.1,5.57693]
[1743783421481,6.67772842,1793.3,1793.0,11.15427]
[1743783421678,12.25404842,1793.3,1792.9,5.57755]
[1743783421881,12.25404842,1793.3,1792.9,5.57742]
[1743783421882,0.05574421,1793.2,1792.9,5.57742]
[1743783422081,5.57707,1793.1,1792.7,5.57815]
[1743783422292,5.63304421,1793.0,1792.7,5.57815]
[1743783422489,5.57803,1792.8,1792.4,5.5791]
[1743783422725,6.566,1792.7,1792.6,5.57848]
[1743783422886,6.67593927,1792.7,1792.5,5.57863]
[1743783423293,6.67593927,1792.7,1792.4,5.57908]
[1743783423502,6.67593927,1792.7,1792.4,5.57894]
[1743783423828,6.67593927,1792.7,1792.5,5.5786]
[1743783423985,6.67593927,1792.7,1792.4,5.57895]
[1743783424184,6.67593927,1792.7,1792.5,5.57867]
[1743783424814,6.67593927,1792.7,1792.6,5.57848]
[1743783425214,6.67593927,1792.7,1792.6,9.74997185]
[1743783425215,0.10993927,1792.7,1792.6,9.74997185]
[1743783425417,0.41367196,1793.3,1792.9,5.57731]
[1743783425418,6.566,1793.1,1792.9,5.57731]